bitfinex/quotes_ETHUSD_20220112
["timestamp","ask_amount","ask_price","bid_price","bid_amount"]
[1641978409034,1.28338869,3249.0,3248.3,0.00454739]
[1641978409431,0.76962,3249.1,3248.3,0.00454739]
[1641978410644,0.76962,3249.1,3248.9,1.1661572]
[1641978410846,18.87125527,3249.4,3248.9,1.1661572]
[1641978411244,0.00113684,3249.3,3248.9,1.1661572]
[1641978415103,20.1986031,3249.4,3248.3,0.00454739]
[1641978415507,0.76968,3249.1,3248.3,0.00568423]
[1641978415708,18.86968,3249.1,3248.3,0.00568423]
[1641978416108,1.53566032,3248.8,3248.4,1.47914169]
[1641978416509,1.53566032,3248.8,3248.5,0.00454738]
[1641978416710,19.63566032,3248.8,3248.5,0.00454738]
[1641978417010,1.53943,3249.3,3248.5,0.00454738]
[1641978417208,0.3,3249.2,3248.5,0.00454738]
[1641978417408,18.1,3249.2,3248.5,0.00454738]
[1641978417609,18.4,3249.2,3248.5,0.00454738]
[1641978417826,18.1,3249.0,3248.5,0.00454738]
[1641978418628,2.29471797,3249.1,3248.5,0.00454738]
[1641978418826,1.52504797,3249.1,3248.5,0.00454738]
[1641978419030,19.62504797,3249.1,3248.5,0.00454738]
[1641978420734,18.1,3249.0,3248.5,0.00454738]
[1641978421788,18.8697384,3248.9,3248.5,0.00454738]
[1641978422188,18.1,3248.9,3248.5,0.00454738]
[1641978422784,1.52504797,3249.1,3248.5,2.19978139]
[1641978422985,0.3,3249.2,3248.5,0.00454738]
[1641978423187,0.3,3249.2,3248.4,2.99946153]
[1641978423387,0.00341054,3249.1,3248.4,2.99946153]
[1641978423789,0.00284211,3249.0,3248.4,2.99946153]
[1641978424188,1.22105024,3249.2,3248.9,1.14806454]
[1641978424488,0.00397896,3249.2,3248.9,1.14806454]
[1641978427138,18.10397896,3249.2,3248.9,1.14806454]
[1641978427537,18.10397896,3249.2,3248.5,1.2231]
[1641978428140,0.449,3249.3,3248.5,1.2231]
[1641978428340,18.399,3249.3,3248.6,0.00341054]
[1641978428541,18.399,3249.3,3249.1,1.16728553]
[1641978428987,1.21855,3249.7,3249.2,2.22611865]
[1641978429183,1.21855,3249.7,3249.2,2.21648181]
[1641978429184,0.449,3249.7,3249.2,2.21648181]
[1641978429384,0.00227369,3249.6,3249.1,1.16728553]
[1641978429783,0.00170527,3249.5,3249.1,1.16728553]
[1641978430183,0.00113685,3249.4,3249.1,1.16728553]
[1641978430786,0.00113685,3249.4,3248.6,3.23401054]
[1641978431292,0.00113685,3249.4,3248.7,0.00284212]
[1641978431489,0.00113685,3249.4,3248.7,1.00284212]
[1641978431687,0.00113685,3249.4,3248.7,2.21008029]
[1641978431892,0.00113685,3249.4,3248.9,1.53265478]
[1641978432286,0.00113685,3249.4,3249.0,0.00113685]
[1641978434134,18.10113685,3249.4,3249.0,0.00113685]
[1641978435540,18.1,3249.3,3249.0,0.00113685]
[1641978438186,1.57198371,3249.4,3249.0,0.00113685]
[1641978438385,19.67508422,3249.4,3249.0,0.00113685]
[1641978438585,19.97508422,3249.4,3249.0,0.00113685]
[1641978438885,19.67508422,3249.4,3249.0,0.00113685]
[1641978439085,18.10113685,3249.4,3249.0,0.00113685]
[1641978439285,0.00113685,3249.4,3249.0,0.00113685]
[1641978442636,0.00113685,3249.4,3249.0,2.2379146]
[1641978442840,0.00113685,3249.4,3249.0,0.00113685]
[1641978443438,0.80842925,3249.4,3249.0,0.00113685]
[1641978443638,18.90842925,3249.4,3249.0,0.00113685]
[1641978444083,18.1,3249.3,3249.0,0.00113685]
[1641978444283,2.81142729,3249.2,3249.0,0.00113685]
[1641978444486,0.449,3249.1,3248.7,0.00284212]
[1641978444684,18.1,3249.0,3248.7,0.00284212]
[1641978444886,0.449,3249.1,3248.7,0.00284212]
[1641978445084,1.26006864,3249.0,3248.7,1.45667191]
[1641978445287,1.26006864,3249.0,3248.7,0.00284212]
[1641978445490,1.26006864,3249.0,3248.8,0.00227369]
[1641978445688,18.1,3248.9,3248.8,0.00227369]
[1641978445888,18.1,3248.9,3248.0,0.00682108]
[1641978446389,3.17760786,3248.8,3248.2,1.4539839]
[1641978446789,3.17760786,3248.8,3248.3,0.00511581]
[1641978446790,1.42481845,3248.5,3248.3,0.00511581]
[1641978446988,18.549,3248.4,3248.3,0.00511581]
[1641978447187,18.549,3248.4,3247.9,0.0073895]
[1641978447386,18.549,3248.4,3247.8,0.00795793]
[1641978447588,20.088793,3248.4,3247.8,0.00795793]
[1641978447832,18.4,3248.3,3247.9,1.36591091]
[1641978448034,20.3887435,3248.3,3247.9,1.36591091]
[1641978448234,20.42838969,3248.3,3248.0,0.00682108]
[1641978449036,1.16313425,3248.2,3247.8,0.00795793]
[1641978449236,18.1,3248.0,3247.8,0.00795793]
[1641978449438,0.449,3247.9,3247.8,0.00795793]
[1641978449637,20.04700121,3247.9,3247.8,0.00795793]
[1641978450441,18.849,3247.9,3247.8,0.00795793]
[1641978451243,0.749,3247.9,3247.8,0.00795793]
[1641978451686,0.749,3247.9,3247.6,0.00909477]
[1641978451892,0.7699387,3247.8,3247.6,0.00909477]
[1641978452088,1.25485167,3247.8,3247.6,0.00909477]
[1641978452588,0.48491297,3247.8,3247.6,0.00909477]
[1641978452788,0.449,3247.8,3247.6,0.00909477]
[1641978453689,1.2189121,3247.8,3247.6,0.00909477]
[1641978453889,1.25234202,3247.8,3247.6,0.00909477]
[1641978454691,0.48242992,3247.8,3247.6,0.00909477]
[1641978454892,0.449,3247.8,3247.6,0.00909477]
[1641978455090,0.449,3248.4,3247.6,0.00909477]
[1641978455338,0.449,3248.4,3248.0,1.34576829]
[1641978455742,0.449,3248.4,3248.1,1.20829706]
[1641978456039,0.449,3248.4,3248.2,0.00568423]
[1641978467485,18.1,3248.3,3248.2,0.00568423]
[1641978467685,0.749,3248.4,3248.2,0.00568423]
[1641978467686,3.0586444,3248.4,3248.2,0.00568423]
[1641978467884,18.1,3248.3,3247.7,0.00852635]
[1641978468087,0.449,3248.2,3247.7,0.00852635]
[1641978468486,0.749,3248.2,3248.0,1.48792283]
[1641978468887,0.749,3248.2,3248.1,0.00625266]
[1641978470342,0.61213425,3248.2,3248.1,0.00625266]
[1641978470743,0.449,3248.2,3248.1,0.00625266]
[1641978470943,0.03585643,3248.5,3248.1,0.00625266]
[1641978471144,18.549,3248.6,3248.1,0.00625266]
[1641978472146,18.849,3248.6,3248.1,0.00625266]
[1641978472546,19.61881,3248.6,3248.1,0.00625266]
[1641978473347,19.49072,3248.6,3248.1,0.00625266]
[1641978473746,0.7698239,3248.4,3248.1,0.00625266]
[1641978473989,18.90475538,3248.4,3248.1,0.00625266]
[1641978474192,0.80475538,3248.4,3248.1,0.00625266]
[1641978474388,18.1,3248.5,3248.1,0.00625266]
[1641978474590,18.1,3248.5,3247.7,0.00852635]
[1641978474891,18.1,3248.5,3247.6,0.40860179]
[1641978475095,18.09742,3248.5,3247.6,0.32296179]
[1641978475292,0.00397896,3248.4,3247.6,0.32296179]
[1641978475691,0.00341054,3248.3,3247.6,0.32296179]
[1641978476092,0.00284212,3248.2,3247.6,0.62296179]
[1641978476293,0.00284212,3248.2,3248.0,1.48111434]
[1641978476494,0.00227369,3248.1,3248.0,1.48111434]
[1641978476699,0.00227369,3248.1,3248.0,1.17319434]
[1641978476893,0.00227369,3248.1,3247.6,0.32296179]
[1641978477194,18.54812527,3248.0,3247.6,0.32296179]
[1641978477393,18.84812527,3248.0,3247.6,0.32296179]
[1641978477596,0.00113685,3247.9,3247.6,0.32296179]
[1641978477836,0.449,3247.8,3247.6,0.32296179]
[1641978478038,0.749,3247.8,3247.6,0.32296179]
[1641978479839,0.449,3247.8,3247.6,0.32296179]
[1641978483597,0.449,3247.8,3246.9,1.2025]
[1641978483598,18.1,3247.6,3246.9,1.2025]
[1641978483797,18.1,3247.6,3246.3,3.9932]
[1641978483798,8.59727704,3247.5,3245.8,6.8281]
[1641978483996,0.7701793,3247.2,3247.0,0.00397897]
[1641978484195,1.51918,3247.1,3247.0,0.00397897]
[1641978484398,0.749,3247.1,3246.0,0.0096632]
[1641978484597,1.37710103,3246.9,3246.5,1.53948927]
[1641978484796,1.9894696,3246.8,3246.5,1.53948927]
[1641978484998,1.21925,3246.7,3246.6,0.00625266]
[1641978485245,0.749,3246.7,3246.6,0.00625266]
[1641978486043,0.449,3246.7,3246.6,0.00625266]
[1641978486343,0.449,3247.1,3246.6,2.22190402]
[1641978486744,0.449,3247.1,3246.7,0.00568424]
[1641978488449,0.449,3247.1,3247.0,1.45850109]
[1641978489092,18.549,3247.1,3246.6,0.00625266]
[1641978489295,0.449,3247.1,3246.6,0.00625266]
[1641978489498,0.749,3247.1,3246.4,0.00738951]
[1641978489894,0.770136,3246.9,3246.4,0.00738951]
[1641978490095,0.449,3246.8,3246.4,0.00738951]
[1641978490500,0.449,3246.8,3246.5,1.25037311]
[1641978490899,0.449,3246.8,3246.6,2.26419765]
[1641978491300,0.31213425,3246.8,3246.7,0.00568424]
[1641978491500,0.449,3247.2,3246.7,0.00568424]
[1641978492500,0.449,3247.2,3247.1,1.38236094]
[1641978492937,0.449,3247.2,3247.1,1.38577148]
[1641978494644,2.31005,3248.1,3247.1,5.27943853]
[1641978494645,0.449,3247.6,3247.1,5.27943853]
[1641978494840,0.449,3247.6,3247.1,5.57943853]
[1641978495040,0.449,3247.6,3247.2,0.00284212]
[1641978499297,0.449,3247.6,3247.2,2.21138119]
[1641978499693,0.449,3247.6,3247.3,0.0022737]
[1641978500349,0.449,3247.6,3247.2,0.00284212]
[1641978501150,0.449,3247.6,3247.2,2.19351124]
[1641978501349,0.449,3247.6,3247.2,2.21377212]
[1641978501549,0.449,3247.6,3247.3,0.0022737]
[1641978501954,0.449,3247.6,3247.2,2.20702615]
[1641978502151,0.449,3247.6,3247.3,0.0022737]
[1641978503750,0.00113685,3247.9,3247.3,0.0022737]
[1641978503996,0.00113685,3247.9,3247.3,1.4780737]
[1641978504199,0.00113685,3247.9,3247.4,2.21434985]
[1641978504397,0.00113685,3247.9,3247.4,2.21605512]
[1641978504599,0.00113685,3247.9,3247.5,0.00113685]
[1641978504797,0.00113685,3247.9,3247.6,1.55434054]
[1641978504999,0.00113685,3247.9,3247.6,1.85434054]
[1641978505201,0.00113685,3247.9,3247.6,1.55434054]
[1641978506004,0.00113685,3247.9,3247.6,1.85434054]
[1641978506605,0.00113685,3247.9,3247.6,1.55434054]
[1641978507006,0.449,3247.8,3247.6,1.55434054]
[1641978508446,0.449,3247.8,3247.6,1.85434054]
[1641978508748,0.449,3247.8,3247.7,2.22080339]
[1641978508947,0.449,3247.8,3247.6,1.55434054]
[1641978512309,0.40092313,3247.8,3247.6,1.55434054]
[1641978512908,0.40092313,3247.8,3247.7,2.20203208]
[1641978513111,0.40092313,3247.8,3247.6,1.85434054]
[1641978513308,0.40092313,3247.8,3247.7,2.18103143]
[1641978513508,0.40092313,3247.8,3247.6,1.85434054]
[1641978513808,0.40092313,3247.8,3247.7,2.18454188]
[1641978514009,0.40092313,3247.8,3247.6,1.85434054]
[1641978514409,0.40092313,3247.8,3247.7,2.18012873]
[1641978514610,0.40092313,3247.8,3247.6,1.85434054]
[1641978514809,0.40092313,3247.8,3247.7,2.20276]
[1641978515013,0.449,3248.2,3247.7,2.20276]
[1641978515443,0.00227369,3248.1,3247.7,2.20276]
[1641978515842,0.00170527,3248.0,3247.7,2.18250267]
[1641978516042,0.00170527,3248.0,3247.6,1.85434054]
[1641978516244,0.00113685,3247.9,3247.7,2.18872646]
[1641978517345,0.00113685,3247.9,3247.6,1.55434054]
[1641978520397,0.00113685,3247.9,3247.7,2.20451785]
[1641978520600,0.00113685,3247.9,3247.7,2.19065235]
[1641978520800,0.00113685,3247.9,3247.6,1.55434054]
[1641978524748,0.00113685,3247.9,3247.7,2.20447055]
[1641978526155,0.00113685,3247.9,3247.6,1.55434054]
[1641978533250,0.6340611,3248.0,3247.6,1.55434054]
[1641978533655,0.6340611,3248.0,3247.7,0.00113685]
[1641978535504,0.6340611,3248.0,3247.7,2.24402131]
[1641978535703,0.6340611,3248.0,3247.7,0.00113685]
[1641978538345,0.6340611,3248.0,3247.7,2.17781855]
[1641978538543,0.6340611,3248.0,3247.7,0.00113685]
[1641978539145,1.25366195,3248.2,3247.7,2.21615586]
[1641978539545,0.00113684,3248.1,3247.7,2.21615586]
[1641978539744,0.45013684,3248.1,3247.7,2.21615586]
[1641978540349,0.45013684,3248.1,3247.7,0.00113685]
[1641978540550,0.45013684,3248.1,3247.7,2.18791209]
[1641978540950,0.45013684,3248.1,3247.7,2.2009657]
[1641978541150,0.45013684,3248.1,3247.7,2.19688284]
[1641978541351,0.45013684,3248.1,3247.7,0.00113685]
[1641978541596,0.45013684,3248.1,3247.7,2.17005888]
[1641978541797,0.45013684,3248.1,3247.7,2.16548562]
[1641978542000,0.45013684,3248.1,3247.7,0.00113685]
[1641978543000,1.51281548,3248.0,3247.7,0.00113685]
[1641978543199,1.53965,3248.0,3247.7,0.00113685]
[1641978543399,0.76982,3247.9,3247.7,0.00113685]
[1641978544001,0.45013684,3248.1,3247.7,0.00113685]
[1641978546344,0.45013684,3248.1,3247.7,2.16143294]
[1641978546546,0.45013684,3248.1,3247.7,3.16143294]
[1641978546943,0.45013684,3248.1,3247.7,1.00113685]
[1641978547145,0.45013684,3248.1,3247.7,0.00113685]
[1641978547944,1.53968,3248.0,3247.7,0.00113685]
[1641978548145,1.98868,3248.0,3247.7,0.00113685]
[1641978548344,1.98868,3248.0,3247.4,0.00284212]
[1641978548544,0.76994,3247.8,3247.4,0.00284212]
[1641978548745,0.449,3247.7,3247.4,0.00284212]
[1641978548992,1.44531393,3247.6,3247.4,0.00284212]
[1641978549195,1.89431393,3247.6,3247.4,0.00284212]
[1641978549392,3.43422393,3247.6,3247.2,0.00397897]
[1641978550296,2.70191348,3247.5,3247.2,0.00397897]
[1641978550499,0.449,3247.4,3247.2,0.00397897]
[1641978550698,0.449,3247.4,3246.7,3.0826]
[1641978550699,0.77009,3247.2,3246.9,0.00568424]
[1641978550899,1.2191053,3247.1,3246.8,0.00625266]
[1641978551098,1.25253912,3247.1,3246.8,0.00625266]
[1641978551297,1.25253912,3247.1,3246.7,0.00682109]
[1641978551799,1.45525447,3247.0,3246.7,0.00682109]
[1641978551995,0.449,3246.9,3246.7,0.00682109]
[1641978552398,1.2191406,3246.9,3246.7,0.00682109]
[1641978552598,1.25201938,3246.9,3246.7,0.00682109]
[1641978553054,2.02211938,3246.9,3246.6,0.00738951]
[1641978553252,2.02211938,3246.9,3246.2,0.0096632]
[1641978553455,0.77017,3246.7,3246.2,0.0096632]
[1641978553654,0.449,3246.6,3245.8,1.364948]
[1641978554054,0.77016,3246.3,3245.9,0.01136847]
[1641978554254,0.66463455,3246.3,3245.9,0.01136847]
[1641978554654,0.449,3246.2,3245.9,0.01136847]
[1641978554853,0.449,3246.2,3245.8,0.0119369]
[1641978555454,0.449,3246.2,3245.9,1.24975667]
[1641978555855,0.449,3246.2,3246.0,0.01080005]
[1641978556494,0.66463455,3246.3,3246.0,0.01080005]
[1641978557095,0.0313403,3246.3,3246.0,0.01080005]
[1641978557294,0.77009,3246.5,3246.0,0.01080005]
[1641978560746,0.77009,3246.5,3246.4,1.19392711]
[1641978561947,0.77009,3246.5,3246.4,1.18300483]
[1641978562749,0.77009,3246.5,3245.8,2.1367]
[1641978562948,0.77017,3246.3,3245.8,2.1367]
[1641978563150,0.03278634,3246.3,3245.8,1.0]
[1641978563450,0.00227369,3246.4,3245.8,1.0]
[1641978563649,0.00227369,3246.4,3245.7,1.5492206]
[1641978563849,0.00170527,3246.3,3245.7,1.5492206]
[1641978564086,0.00170527,3246.3,3245.8,0.00113685]
[1641978564288,0.00113685,3246.2,3245.8,0.00113685]
[1641978564694,0.00284212,3246.5,3245.8,0.00113685]
[1641978565087,0.00284212,3246.5,3246.3,1.29727454]
[1641978565293,1.54313212,3246.5,3246.3,1.29727454]
[1641978565694,0.77294212,3246.5,3246.3,1.29727454]
[1641978567756,0.77294212,3246.5,3246.3,0.59727454]
[1641978568557,0.77294212,3246.5,3245.8,2.21433685]
[1641978568558,0.77018,3246.3,3245.8,2.21433685]
[1641978568757,0.77018,3246.3,3245.8,1.00113685]
[1641978568960,0.00113685,3246.2,3245.8,1.00113685]
[1641978569558,0.00113685,3246.2,3245.9,1.43351751]
[1641978572818,0.00113685,3246.2,3245.9,1.73351751]
[1641978573214,0.00113685,3246.2,3245.9,2.73351751]
[1641978573416,0.00113685,3246.2,3245.9,1.73351751]
[1641978573615,0.00113685,3246.2,3246.0,1.0]
[1641978573914,0.00113685,3246.2,3246.0,0.77003]
[1641978574114,0.00113685,3246.2,3246.0,1.77003]
[1641978575351,0.66816533,3246.8,3246.1,2.9]
[1641978575549,0.03956262,3247.1,3246.4,0.76994]
[1641978575752,0.00284211,3246.7,3246.5,0.06903802]
[1641978575949,0.00284211,3246.7,3246.4,0.76994]
[1641978576148,0.00227369,3246.6,3246.4,1.06994]
[1641978576548,0.80767374,3247.1,3246.5,1.1493017]
[1641978576549,0.03773374,3247.1,3246.5,1.1493017]
[1641978576750,1.57565911,3247.5,3247.4,1.10604132]
[1641978576950,1.57565911,3247.5,3246.4,1.06994]
[1641978577151,1.57565911,3247.5,3246.7,0.76988]
[1641978577353,0.00682108,3247.4,3246.5,1.53966]
[1641978577551,0.00682108,3247.4,3246.6,2.25223806]
[1641978577751,0.00625265,3247.3,3246.6,2.25223806]
[1641978577953,0.00625265,3247.3,3246.8,1.12094885]
[1641978578152,0.00568423,3247.2,3246.9,1.14041647]
[1641978578550,0.00511581,3247.1,3246.9,1.44041647]
[1641978579008,0.00454738,3247.0,3246.9,1.44041647]
[1641978579197,0.00454738,3247.0,3246.7,2.1334]
[1641978579198,0.00454738,3247.0,3246.8,1.0]
[1641978579399,0.00454738,3247.0,3246.7,1.1334]
[1641978579697,0.00397896,3246.9,3246.7,1.1334]
[1641978579899,0.00397896,3246.9,3246.1,3.0345]
[1641978580099,0.00341054,3246.8,3246.1,3.0345]
[1641978580303,0.00341054,3246.8,3246.4,1.36085998]
[1641978580505,0.00284211,3246.7,3246.4,1.36085998]
[1641978580903,0.00227369,3246.6,3246.4,1.36085998]
[1641978581313,1.54001,3247.4,3246.4,1.36085998]
[1641978581314,0.00170527,3246.5,3246.4,1.36085998]
[1641978581503,0.00170527,3246.5,3246.1,3.0345]
[1641978581904,0.00113684,3246.4,3246.1,3.0345]
[1641978582104,0.00113684,3246.4,3246.2,1.0]
[1641978582305,0.00625265,3247.3,3246.2,1.0]
[1641978582746,2.05047888,3247.2,3246.7,1.14284389]
[1641978582948,1.54018,3247.1,3246.2,1.0]
[1641978583150,1.54529581,3247.1,3246.2,1.0]
[1641978583351,0.00454738,3247.0,3246.2,1.0]
[1641978583749,0.00397896,3246.9,3246.2,1.0]
[1641978583951,0.00397896,3246.9,3246.5,1.53380957]
[1641978584249,2.34484465,3247.2,3246.5,1.53380957]
[1641978584250,0.00341054,3246.8,3246.5,1.53380957]
[1641978584648,1.57430618,3247.5,3246.5,1.53380957]
[1641978584649,0.00284211,3246.7,3246.5,1.53380957]
[1641978585049,0.00227369,3246.6,3246.5,1.53380957]
[1641978585660,0.00227369,3246.6,3246.5,2.91156207]
[1641978590646,0.00227369,3246.6,3246.5,3.91156207]
[1641978590849,0.00227369,3246.6,3246.5,2.91156207]
[1641978591050,0.00227369,3246.6,3246.5,3.91156207]
[1641978591249,0.00227369,3246.6,3246.5,2.91156207]
[1641978591449,0.00227369,3246.6,3246.5,3.91156207]
[1641978591849,0.00227369,3246.6,3246.5,4.51156207]
[1641978592048,0.00227369,3246.6,3246.5,4.21156207]
[1641978592248,0.00227369,3246.6,3246.5,4.51156207]
[1641978592448,0.00227369,3246.6,3246.5,4.21156207]
[1641978592848,0.00227369,3246.6,3246.5,3.91156207]
[1641978594393,0.00227369,3246.6,3246.5,4.51156207]
[1641978594591,0.00227369,3246.6,3246.5,6.82884419]
[1641978594796,0.00227369,3246.6,3246.5,4.51156207]
[1641978595596,0.00227369,3246.6,3246.5,1.94156207]
[1641978595798,0.00227369,3246.6,3246.5,0.94156207]
[1641978596298,0.00227369,3246.6,3246.5,0.34156207]
[1641978596497,2.28869,3248.0,3247.1,1.41275784]
[1641978596798,0.76988,3247.6,3246.7,0.76986]
[1641978596997,0.76988,3247.6,3246.7,1.76986]
[1641978597197,0.76988,3247.6,3246.5,0.34156207]
[1641978597198,0.00511581,3247.5,3246.8,0.3]
[1641978597398,0.00511581,3247.5,3246.5,2.86444045]
[1641978597600,0.00454739,3247.4,3246.6,1.0]
[1641978597843,0.00454739,3247.4,3246.7,1.23506787]
[1641978598042,0.76985,3247.6,3246.7,1.23506787]
[1641978598043,0.00397896,3247.3,3246.7,1.23506787]
[1641978598445,0.00341054,3247.2,3246.7,1.23506787]
[1641978598948,0.76985,3247.6,3246.7,1.23506787]
[1641978599347,0.00511581,3247.5,3246.7,1.23506787]
[1641978599746,0.76993,3247.2,3246.7,1.23506787]
[1641978600149,0.00284212,3247.1,3246.7,1.23506787]
[1641978600556,0.00227369,3247.0,3246.7,1.23506787]
[1641978600854,0.00170527,3246.9,3246.7,1.23506787]
[1641978601254,0.00113685,3246.8,3246.7,1.23506787]
[1641978603597,0.00113685,3246.8,3246.7,2.00489787]
[1641978604996,0.00113685,3246.8,3246.7,1.23506787]
[1641978605459,0.00113685,3246.8,3246.6,2.23520785]
[1641978605756,0.00113685,3246.8,3246.6,1.23520785]
[1641978606556,0.00113685,3246.8,3246.7,1.27694114]
[1641978607357,0.00113685,3246.8,3246.7,2.04681114]
[1641978607856,0.00113685,3246.8,3246.4,1.2419]
[1641978608755,0.00113685,3246.8,3246.4,1.5419]
[1641978608998,0.00113685,3246.8,3246.7,1.24263742]
[1641978610099,0.00113685,3246.8,3246.7,3.45848619]
[1641978610503,0.00113685,3246.8,3246.7,3.21584877]
[1641978610504,3.10113685,3246.8,3246.7,3.21584877]
[1641978610702,3.10113685,3246.8,3246.7,2.21584877]
[1641978610902,3.10113685,3246.8,3246.5,3.66966592]
[1641978611104,3.10113685,3246.8,3246.5,1.39854645]
[1641978612006,3.10113685,3246.8,3246.5,6.51075796]
[1641978612203,3.10113685,3246.8,3246.5,5.51075796]
[1641978612403,3.10113685,3246.8,3246.6,1.0]
[1641978613143,3.10113685,3246.8,3246.5,1.0]
[1641978613344,3.10113685,3246.8,3246.4,1.2419]
[1641978613543,3.10113685,3246.8,3246.1,3.0345]
[1641978613946,3.10113685,3246.8,3246.2,0.00227369]
[1641978614146,1.30655607,3246.4,3246.2,1.12280927]
[1641978614548,3.10113685,3246.8,3246.3,0.00170527]
[1641978615352,3.10113685,3246.8,3246.3,0.77166527]
[1641978615550,1.40049518,3246.4,3246.3,0.00170527]
[1641978615751,1.40049518,3246.4,3246.2,2.12053558]
[1641978616051,1.40049518,3246.4,3246.2,1.12053558]
[1641978617326,1.40049518,3246.4,3246.0,0.77002]
[1641978617524,1.26362943,3246.4,3245.9,0.3]
[1641978617721,1.26362943,3246.4,3246.1,0.00284212]
[1641978618119,1.26362943,3246.4,3245.8,0.00454739]
[1641978618520,1.55707111,3245.9,3245.8,1.48921826]
[1641978618723,0.032794,3246.5,3245.9,6.85]
[1641978618925,0.00113685,3246.8,3246.0,2.23406948]
[1641978619124,0.00113685,3246.8,3246.0,0.00341054]
[1641978619524,0.00113685,3246.8,3246.0,2.21032569]
[1641978619928,0.00113685,3246.8,3246.3,2.05568695]
[1641978620249,0.00113685,3246.8,3246.4,0.00113685]
[1641978622853,0.00113685,3246.8,3246.4,2.19931459]
[1641978623055,0.00113685,3246.8,3246.4,3.19931459]
[1641978624106,0.00113685,3246.8,3246.6,0.76987]
[1641978624402,0.00113685,3246.8,3246.7,2.19562944]
[1641978624605,0.00113685,3246.8,3246.6,0.76987]
[1641978625206,0.00113685,3246.8,3246.7,2.19754055]
[1641978625410,0.00113685,3246.8,3246.7,3.19754055]
[1641978625808,0.00113685,3246.8,3246.7,1.0]
[1641978626009,0.00113685,3246.8,3246.6,1.06987]
[1641978626409,0.00113685,3246.8,3246.7,2.19354187]
[1641978626611,0.00113685,3246.8,3246.7,3.19354187]
[1641978626809,0.00113685,3246.8,3246.7,3.20092942]
[1641978627013,0.00113685,3246.8,3246.7,3.20102921]
[1641978627209,0.00113685,3246.8,3246.7,3.19514732]
[1641978627410,0.00113685,3246.8,3246.7,1.0]
[1641978627755,0.00113685,3246.8,3246.6,1.0]
[1641978628354,0.00113685,3246.8,3246.7,5.88837572]
[1641978628556,0.00113685,3246.8,3246.7,7.33737572]
[1641978629358,3.10113685,3246.8,3246.7,7.33737572]
[1641978629756,3.10113685,3246.8,3246.7,3.83737572]
[1641978631061,0.43693685,3246.8,3246.7,7.43737572]
[1641978631511,0.43693685,3246.8,3246.7,3.83737572]
[1641978634310,0.43693685,3246.8,3246.7,3.38837572]
[1641978634510,0.43693685,3246.8,3246.7,2.38837572]
[1641978637071,0.43693685,3246.8,3246.7,2.68837572]
[1641978637472,0.43693685,3246.8,3246.7,3.38837572]
[1641978638475,0.3000711,3246.8,3246.7,3.38837572]
[1641978640004,0.3000711,3246.8,3246.7,2.38837572]
[1641978640202,0.3000711,3246.8,3246.7,3.38837572]
[1641978642855,0.3000711,3246.8,3246.7,1.0]
[1641978643055,0.3000711,3246.8,3246.5,4.63337564]
[1641978643460,0.3000711,3246.8,3246.6,0.00113685]
[1641978644359,0.3000711,3246.8,3246.6,1.00113685]
[1641978645766,0.3000711,3246.8,3246.7,6.94192601]
[1641978646166,0.3000711,3246.8,3246.7,7.94192601]
[1641978646368,0.3000711,3246.8,3246.7,3.39192601]
[1641978647406,0.3000711,3246.8,3246.7,1.0]
[1641978647608,0.3000711,3246.8,3246.6,1.07102685]
[1641978647810,0.3000711,3246.8,3246.6,3.26728331]
[1641978648008,0.3000711,3246.8,3246.6,2.07102685]
[1641978648613,0.3000711,3246.8,3246.7,7.071444]
[1641978649008,0.3000711,3246.8,3246.7,3.221444]
[1641978651562,0.29897085,3246.8,3246.7,3.221444]
[1641978653162,0.29787055,3246.8,3246.7,3.221444]
[1641978654909,0.29787055,3246.8,3246.7,2.221444]
[1641978655112,0.29787055,3246.8,3246.7,2.2160496]
[1641978655313,0.29787055,3246.8,3246.7,3.25]
[1641978655514,0.29787055,3246.8,3246.7,5.46967875]
[1641978655715,0.85052757,3248.3,3246.8,7.2]
[1641978655915,0.7697601,3248.1,3247.2,0.76975]
[1641978656120,0.00682108,3248.0,3247.2,0.3]
[1641978656515,0.00625266,3247.9,3246.9,4.69344513]
[1641978656716,1.55653531,3247.3,3247.0,1.1701189]
[1641978657116,0.00227369,3247.2,3247.0,1.1701189]
[1641978657317,0.00227369,3247.2,3247.0,1.9399089]
[1641978657518,0.00170527,3247.1,3247.0,1.9399089]
[1641978659159,0.00170527,3247.1,3247.0,4.29685889]
[1641978659558,0.7698449,3247.8,3247.0,2.1701189]
[1641978659758,0.80185397,3247.8,3247.0,1.1701189]
[1641978660161,0.3,3247.7,3247.0,1.1701189]
[1641978660565,1.18052318,3247.1,3246.9,1.2061]
[1641978660967,1.18052318,3247.1,3246.8,1.5395]
[1641978661370,1.18052318,3247.1,3246.9,0.00113685]
[1641978662207,0.00284212,3247.6,3247.0,1.51578]
[1641978662411,0.00284212,3247.6,3247.0,2.28557]
[1641978662608,0.00227369,3247.5,3247.0,1.51578]
[1641978663006,0.00170527,3247.4,3247.0,1.51578]
[1641978663205,0.00170527,3247.4,3246.9,1.00113685]
[1641978663406,1.2949456,3247.3,3246.9,0.00113685]
[1641978663807,1.29380876,3247.3,3246.7,0.0022737]
[1641978664210,19.70665466,3247.3,3246.6,0.00284212]
[1641978664411,0.7702,3247.1,3246.5,0.00341054]
[1641978664610,0.7702,3247.1,3246.7,0.0022737]
[1641978664611,1.5404213,3246.9,3246.7,0.0022737]
[1641978664810,1.13095316,3246.8,3246.5,0.00341054]
[1641978665108,1.43095316,3246.8,3246.5,0.00341054]
[1641978665364,2.20109316,3246.8,3246.5,0.00341054]
[1641978665764,3.00967707,3246.8,3246.5,0.00341054]
[1641978669212,2.23953707,3246.8,3246.5,0.00341054]
[1641978672954,3.00971707,3246.8,3246.5,0.00341054]
[1641978674562,2.23953707,3246.8,3246.5,0.00341054]
[1641978675661,3.00965707,3246.8,3246.5,0.00341054]
[1641978676615,2.23953707,3246.8,3246.5,0.00341054]
[1641978677018,1.10858391,3246.8,3246.5,0.00341054]
[1641978677217,0.80438981,3247.2,3246.5,1.24768031]
[1641978677614,0.80438981,3247.2,3246.6,0.00284212]
[1641978678214,0.80438981,3247.2,3247.1,1.35440796]
[1641978678615,1.57441831,3247.2,3246.6,1.00284212]
[1641978678814,1.60949268,3247.2,3246.6,0.00284212]
[1641978679015,1.60949268,3247.2,3246.7,0.0022737]
[1641978679016,0.80438981,3247.2,3246.7,0.0022737]
[1641978679214,1.10438981,3247.2,3246.5,0.00341054]
[1641978679517,1.10438981,3247.2,3246.8,1.5312714]
[1641978679719,0.8068118,3247.1,3246.5,0.00341054]
[1641978679915,0.3,3247.0,3246.9,0.00113685]
[1641978680116,0.3,3247.0,3246.5,0.00341054]